Cogmind - Beta 16 @@@ ROGUE MODE // 2025.11.07 @ 20:07:05 // Winter2019/RPGLIKE Player: Jaegerpls Result: Destroyed by QT-802(R) with Subdweller Laser Performance ------------- Evolutions (0) 0 Regions Visited (2) 400 Robots Destroyed (24) 120 Value Destroyed (360) 360 Prototype IDs (0) 0 Alien Tech Used (0) 0 Bonus (0) 0 TOTAL SCORE: 880 Bonus ------- None Cogmind --------- Core Integrity 0/700 Matter 296/300 Energy 88/100 System Corruption 6% Temperature Cool (6) Movement Flying (37) Location -10/Subcaves Parts ------- > --- POWER (1) -------- (None) > --- PROPULSION (3) --- Flight Unit Flight Unit > --- UTILITY (3) ------ Weight Redist. System Signal Interpreter Improved Terrain Scanner > --- WEAPON (2) ------- Mining Claw Mining Claw > --- INVENTORY (1) ---- Flight Unit Peak State ------------ > --- POWER ------------ Light Nuclear Core > --- PROPULSION ------- Wheel Compact Wheel > --- UTILITY ---------- Improved Heat Sink Weight Redist. System Improved Terrain Scanner > --- WEAPON ----------- Mining Claw Mining Claw > --- INVENTORY -------- Assault Rifle [Rating: 15] Favorites ----------- Power Light Nuclear Core Engine Ion Engine Power Core Light Nuclear Core Propulsion Flight Unit Wheel Wheel Flight Unit Flight Unit Utility Improved Terrain Scanner Device Improved Terrain Scanner Storage Medium Matter Pod Processor Signal Interpreter Weapon Mining Claw Energy Cannon Beam Cannon Ballistic Gun Assault Rifle Slashing Weapon Mining Claw Build | -11 -10 -10 ------- Run | Yrd Mat Sub Slots Evolved 5 | 4 . 1 Power . | . . . Propulsion 2 | 1 . 1 Utility 2 | 2 . . Weapon 1 | 1 . . Parts Attached 18 | 8 10 . Power 2 | 1 1 . Engine 1 | 1 . . Core 1 | . 1 . Reactor . | . . . Propulsion 4 | 2 2 . Treads . | . . . Leg . | . . . Wheel 2 | 2 . . Hover . | . . . Flight 2 | . 2 . Utility 7 | 3 4 . Device 5 | 3 2 . Storage 1 | . 1 . Processor 1 | . 1 . Hackware . | . . . Protection . | . . . Artifact . | . . . Weapon 5 | 2 3 . Energy Gun . | . . . Energy Cannon 1 | . 1 . Ballistic Gun 2 | 2 . . Ballistic Cannon . | . . . Launcher . | . . . Special Weapon . | . . . Impact Weapon . | . . . Slashing Weapon 2 | . 2 . Piercing Weapon . | . . . Special Melee Weapon . | . . . Unidentified Prototypes . | . . . Corrupted Parts 1 | . 1 . System Corruption 4 | . 4 . Parts Lost 1 | . . 1 Power 1 | . . 1 Propulsion . | . . . Utility . | . . . Weapon . | . . . Highest Loss Streak 1 | . . 1 To Critical Strikes . | . . . Average Backups . | . . 1 Power . | . . . Propulsion . | . . 1 Utility . | . . . Weapon . | . . . Tool/Special . | . . . Unused Backups 1 | . . 1 Power . | . . . Propulsion 1 | . . 1 Utility . | . . . Weapon . | . . . Tool/Special . | . . . Average Slot Usage (%) 93 | . 94 89 Engine 1 | . 2 . Core 10 | . 10 11 Wheel 12 | . 14 . Flight 11 | . 9 22 Device 28 | . 29 22 Processor 3 | . 2 11 Energy Cannon 4 | . 4 . Ballistic Gun 5 | . 5 . Slashing Weapon 14 | . 13 22 Peak Build Rating 15 | 10 15 13 Average Rating 11 | 6 12 12 On Entrance 7 | . 10 13 Avg Prop Armor Cover (%) . | . . . Naked Turns . | . . . Heaviest Build 13 | 12 13 10 Greatest Support 32 | 26 32 19 Greatest Overweight (x) . | . . . Average Overweight (x) . | . . . Largest Inventory Capacity 1 | 1 1 1 Average Capacity . | . 1 1 Most Carried 1 | . 1 1 Average Carried . | . . 1 Final Capacity 1 | 1 1 1 Final Carried 1 | . 1 1 Class Distribution -------------------- 32% | Mutant 29% | Scavenger-Gladiator 21% | Scavenger-Mutant 9% | Gladiator 7% | Scavenger-Scout Dominant Class ---------------- Scavenger-Gladiator | -10/Materials Scavenger-Scout | -10/Subcaves Resources | -11 -10 -10 ----------- Run | Yrd Mat Sub Matter Collected 544 | 376 168 . Remotely 342 | 232 110 . Salvage Created 647 | 230 417 . Parts 40 | 15 25 . Haulers Intercepted 2 | . 2 . Recyclers Shooed 1 | 1 . . Parts Field Recycled . | . . . Retrieved Matter . | . . . Parts Self-Destructed 3 | . . 3 Prevented . | . . . Parts Restored . | . . . Kills | -11 -10 -10 ------- Run | Yrd Mat Sub Combat Hostiles Destroyed 11 | . 11 . Melee 4 | . 4 . Guns 3 | . 3 . Cannons 4 | . 4 . Classes Destroyed 6 | 2 4 . Tunneler 7 | 7 . . Hauler 2 | . 2 . Recycler 1 | 1 . . Watcher 3 | . 3 . Swarmer 6 | . 6 . Grunt 5 | . 5 . Best Kill Streak 5 | 5 3 . Combat Bots Only 3 | . 3 . Max Kills in Single Turn 1 | 1 1 . Gunslinging . | . . . Exploded . | . . . Melee 1 | . 1 . Uniques/NPCs Destroyed . | . . . Combat | -11 -10 -10 -------- Run | Yrd Mat Sub Hostile Shots Fired 117 | . 84 33 Missed 24 | . 13 11 Hits 93 | . 71 22 Projectile 93 | . 71 22 Critical Strikes 1 | . 1 . Damage Taken 1143 | . 675 468 Core 935 | . 549 386 Absorbed by Shields . | . . . Redirected to Core 680 | . 377 303 Core Remaining (%) 100 | 100 . . Volleys Fired 36 | 16 20 . Largest 2 | 2 2 . Hottest 80 | 40 80 . Shots Fired 72 | 32 40 . Gun 52 | 32 20 . Cannon 20 | . 20 . Launcher . | . . . Special . | . . . Kinetic 52 | 32 20 . Thermal 20 | . 20 . Explosive . | . . . Electromagnetic . | . . . Robot Hit Streak 9 | 5 9 . Robot Miss Streak 2 | 2 1 . Penetration Max . | . . . Secondary Targets . | . . . Shots Hit Robots 70 | 19 44 7 Core Hits 29 | 9 19 1 Critical Kills . | . . . Critical Parts Destroyed . | . . . Critical Strikes . | . . . Melee Attacks 50 | . 33 17 Impact . | . . . Slashing 50 | . 33 17 Piercing . | . . . Sneak Attacks . | . . . Combat Hostiles . | . . . Follow-up Attacks 6 | . 5 1 Damage Inflicted 1232 | 259 797 176 Guns 406 | 259 147 . Cannons 281 | . 281 . Explosions . | . . . Melee 545 | . 369 176 Ramming . | . . . Kinetic 406 | 259 147 . Thermal 281 | . 281 . Explosive . | . . . Electromagnetic . | . . . Impact . | . . . Slashing 545 | . 369 176 Piercing . | . . . Highest Corruption 6 | . 6 6 Average Corruption 5 | . 4 6 Corruption Purged . | . . . Corruption Blocked . | . . . Effects 13 | . 11 2 Matter Fused 4 | . 4 . Heat Flow Errors 5 | . 4 1 Energy Discharges 2 | . 1 1 Data Loss (minor) 1 | . 1 . Data Loss (major) 1 | . 1 . Overload Shots . | . . . Overflow Damage 27 | . 27 . Projectiles . | . . . Explosions . | . . . Melee 27 | . 27 . Knockbacks . | . . . Impact . | . . . Kinetic . | . . . Secondary . | . . . Self-Inflicted Damage . | . . . Shots . | . . . Rammed . | . . . Targets Rammed . | . . . Kicked . | . . . Crushed . | . . . Highest Temperature 256 | . 256 247 Average Temperature 97 | . 92 134 Received Heat Transfer 219 | . 153 66 Siege Activations . | . . . Martial Activations . | . . . Shielding Activations . | . . . Robots Disrupted . | . . . Combat Hostiles . | . . . Robots Corrupted . | . . . Combat Hostiles . | . . . Parts Fried . | . . . Impact Corruptions . | . . . Robots Melted . | . . . Combat Hostiles . | . . . Parts Melted 2 | . 2 . Heat Transferred 592 | . 592 . Parts Sabotaged . | . . . Parts Stolen . | . . . Parts Stripped . | . . . Power Chain Reactions . | . . . Alert | -11 -10 -10 ------- Run | Yrd Mat Sub Maximum Alert Level . | . . . Low Security (%) 100 | 100 100 . Level 1 . | . . . Level 2 . | . . . Level 3 . | . . . Level 4 . | . . . Level 5 . | . . . High Security . | . . . Max Security . | . . . Peak Influence 138 | 15 138 . Initial . | . . . Average 57 | 2 77 . Influence Increases 403 | 40 363 . Destroy 0b10 Robot/C 220 | . 220 . Destroy 0b10 Robot/NC 65 | 40 25 . Destroy Leader 60 | . 60 . Successful Hack 27 | . 27 . Disable Machine 15 | . 15 . Destroy Structure 1 | . 1 . Lose Combat Pursuer 15 | . 15 . Influence Decreases 403 | 40 271 92 Entered New Map 45 | . . 45 Time Decay 348 | 40 271 37 Lost Part 10 | . . 10 Squads Dispatched 2 | . 2 . Investigation 1 | . 1 . Extermination . | . . . Reinforcement 1 | . 1 . Assault . | . . . Garrison . | . . . Intercept . | . . . Searches Triggered . | . . . Construction Impeded . | . . . Haulers Reinforced . | . . . Active Scanning Responses . | . . . Cargo Convoy Interrupts . | . . . Stealth | -11 -10 -10 --------- Run | Yrd Mat Sub Distress Signals . | . . . Communications Jammed . | . . . Distress Signals . | . . . Times Spotted 20 | . 18 2 Peak Tracking Total 4 | . 4 2 Tactical Retreats 1 | . 1 . Traps | -11 -10 -10 ------- Run | Yrd Mat Sub Traps Triggered 2 | . 2 . Indirectly . | . . . Trap Hack Attempts . | . . . Triggered . | . . . Disarmed . | . . . Reprogrammed . | . . . Reused . | . . . Traps Extracted . | . . . Installed . | . . . Triggered . | . . . Machines | -11 -10 -10 ---------- Run | Yrd Mat Sub Machines Disabled 1 | . 1 . Max in Single Turn 1 | . 1 . Machines Repaired . | . . . Machines Dismantled . | . . . Machines Sabotaged . | . . . Overloaded Fab Kills . | . . . Hacking | -11 -10 -10 --------- Run | Yrd Mat Sub Machines Accessed 8 | . 8 . Terminals 7 | . 7 . Fabricators . | . . . Repair Stations . | . . . Recycling Units 1 | . 1 . Scanalyzers . | . . . Garrison Access . | . . . Total Hacks 23 | . 23 . Successful 15 | . 15 . Failed 8 | . 8 . Catastrophic . | . . . Database Lockouts . | . . . Manual 23 | . 23 . Terminals 20 | . 20 . Fabricators . | . . . Repair Stations . | . . . Recycling Units 3 | . 3 . Scanalyzers . | . . . Garrison Access . | . . . Terminal Hacks 4 | . 4 . Robot Analysis 3 | . 3 . Zone Layout 1 | . 1 . Fabricator Hacks . | . . . Repair Station Hacks . | . . . Recycling Unit Hacks 1 | . 1 . Report Inventory 1 | . 1 . Scanalyzer . | . . . Garrison Access Hacks . | . . . Unauthorized Hacks 10 | . 10 . Terminals 8 | . 8 . Botnet 2 | . 2 . Skim 6 | . 6 . Fabricators . | . . . Repair Stations . | . . . Recycling Units 2 | . 2 . Reject 1 | . 1 . Recyclers 1 | . 1 . Scanalyzers . | . . . Garrison Access . | . . . Data Cores Recovered . | . . . Used . | . . . Hacking Detections 6 | . 6 . Full Trace Events . | . . . Feedback Events . | . . . Feedback Blocked . | . . . Robot Schematics Acquired . | . . . Robots Built . | . . . Authchips . | . . . Time . | . . . Total Robot Build Rating . | . . . Part Schematics Acquired . | . . . Parts Built . | . . . Authchips . | . . . Time . | . . . Total Part Build Rating . | . . . Part Studies Acquired . | . . . Parts Repaired . | . . . Time . | . . . Parts Recycled . | . . . Recycled Matter . | . . . Retrieved Matter . | . . . Retrieved Components . | . . . Parts Scanalyzed . | . . . Part Schematics Acquired . | . . . Parts Damaged . | . . . Bothacking | -11 -10 -10 ------------ Run | Yrd Mat Sub Used RIF Installer . | . . . Robots Hacked . | . . . Non-combat . | . . . Combat . | . . . Robot Hacks Applied . | . . . Relay Couplers Released . | . . . Fabnet Peak Effective % . | . . . Robots Rewired . | . . . Allies Hacked . | . . . Hacks Repelled . | . . . Allies | -11 -10 -10 -------- Run | Yrd Mat Sub Total Allies . | . . . Largest Group . | . . . Highest-Rated Group . | . . . Highest-Rated Ally . | . . . Total Orders . | . . . Ally Attacks . | . . . Total Damage . | . . . Kills . | . . . Allies Corrupted . | . . . Allies Melted . | . . . Intel | -11 -10 -10 ------- Run | Yrd Mat Sub Active Infowar (turns) 1019 | 226 711 82 Terrain 823 | 30 711 82 Seismic 265 | 226 39 . Robot Analysis Total 3 | . 3 . Derelict Logs Recovered 1 | . . 1 Drone Launches . | . . . Drone Recoveries . | . . . Exploration | -11 -10 -10 ------------- Run | Yrd Mat Sub Turns Passed 1047 | 254 711 82 Spaces Moved 755 | 50 656 49 Core 1 | 1 . . Treads . | . . . Legs . | . . . Wheels 276 | 49 227 . Hover . | . . . Flight 478 | . 429 49 Fastest Speed 37 | 50 37 37 Average Speed 56 | 88 55 37 Slowest Speed 90 | 90 90 37 Overloaded Moves . | . . . Propulsion Burnouts . | . . . Robots Hopped 1 | . 1 . Potential Cave-ins . | . . . Cave-ins Triggered . | . . . Exploration Rate (%) 35 | 4 99 3 Regions Visited 2 Branch Regions 1 Pre-discovered Areas . | . . . Known Exits Taken 1 | . 1 . Unknown Exits Taken 1 | 1 . . Scrap Searched . | . . . Spaces Dug 1 | . . 1 Terrain Destroyed 1 | . . 1 Melee 1 | . . 1 Projectile . | . . . AOE . | . . . Terrain Rammed . | . . . Walls Destroyed . | . . . Machines Disabled . | . . . Actions | -11 -10 -10 --------- Run | Yrd Mat Sub Total 1209 | 223 903 83 Wait 334 | 150 165 19 Move 751 | 49 653 49 Hop 1 | . 1 . Pick Up 2 | . 2 . Fast Attach 15 | 8 7 . Attach . | . . . Detach . | . . . Swap 3 | . 3 . Drop 8 | . 8 . Fire 36 | 16 20 . Melee 42 | . 27 15 Ram . | . . . Kick . | . . . Crush . | . . . Escape Stasis . | . . . Rewire . | . . . Trap . | . . . Miscellaneous 17 | . 17 . Route ------- -11/Scrapyard -10/Materials (discovered 6 exits: [*Mat x3] / *Min x2 / *Sub) -10/Subcaves (discovered 2 exits: Mat x2) History --------- Turn | Location | Event 5 | -11/Scrapyard | Upgraded with Propulsion slot (x1) 5 | -11/Scrapyard | Upgraded with Utility slot (x2) 5 | -11/Scrapyard | Upgraded with Weapon slot (x1) 15 | -11/Scrapyard | Discovered new exit (range 14) 255 | -11/Scrapyard | Entered Materials 315 | -10/Materials | Build established: Mutant 386 | -10/Materials | Discovered new exit (range 8) 469 | -10/Materials | Discovered new exit (range 10) 724 | -10/Materials | Discovered new exit (range 12) 776 | -10/Materials | Discovered new exit (range 8) 828 | -10/Materials | Identified exit to Mines 838 | -10/Materials | Discovered new exit (range 15) 856 | -10/Materials | Core integrity fell below 50% 914 | -10/Materials | Discovered new exit (range 5) 918 | -10/Materials | Loaded intel: 22 non-interactive machine locations 922 | -10/Materials | Identified exit to Subcaves 965 | -10/Materials | Build established: Scavenger-Gladiator 966 | -10/Materials | Entered Subcaves 967 | -10/Subcaves | Approached by a straggling Scientist 967 | -10/Subcaves | Identified exit to Materials 967 | -10/Subcaves | Learned Materials trap positions 968 | -10/Subcaves | Reached level 2 968 | -10/Subcaves | Upgraded with Propulsion slot (x1) 1032 | -10/Subcaves | Core integrity fell below 20% 1048 | -10/Subcaves | Destroyed by QT-802(R) with Subdweller Laser Last Messages --------------- GOAL=ESCAPE 00967_ BN-4E1(c): "Thank the algorithms! I was beginning to lose hope I'd never make it past all the Subs lurking out here." Loading 2 Materials entrances... 00967_ Acquired derelict log, extracted data. Data stored: Materials trap records. 00968_ Reached level 2. 00968_ Upgraded: Propulsion Slot (+1) 00968_ Upgraded: Core Integrity (+100) 00968_ Upgraded: Mass Support (+5) 00968_ Upgraded: Sensor Range (+2) 00968_ Upgraded: Terrain Scan Density (+300) 00970_ BN-4E1(c): "Hey, let me tag along and I can get us both out of this nasty situation. At least I think I can... The group I got separated from was talking about a shortcut back to the UFD." 00977_ 6K-NFA(R) emerges from the Twisted Machinery. 00991_ System corrupted: Energy discharge (-40). 01014_ Mining Claw follow-up attack on 6K-NFA(R). 01023_ System corrupted: Heat flow error (+287). 01044_ Lgt. Nuclear Core destroyed. Map ----- +----------------------------------------------------+ | ??????????????????????????????????????????????? | | ??????????????????????????????????????????????? | | ??????????????????????????????????????????????? | | ??????????????????????????????????????????????? | | ??????????????????????????????????????????????? | | ??????????????????????????????????????????????? | | ??????????????????????????????????????????????? | | ??????????????????????????????????????????????? | | ??????????????#??# ?##????????????????????????? | | ????????????#????? ## ? ? ????????????????????? | | ????????#?? ##??? # ? ? ? ????????????????? | | ?????????? #?#?### # ## ? ???????????????? | | ????????##### ### ######### ??#????????????? | | ?????#????####?# ## # ##### ???#???????????? | | ??????#??##### ##### ####### ?###???????????? | | ??????######## #### ## ##### ####?#?????????? | | ??????######? #? ############# ##???##????????? | | ?????##?####??# ########## ######????#???????? | | ????######## # ?###########?#?#####?##???????? | | ????#?##?# # ?##?# #?################????????? | | ??????#?## #? ### ######################??????? | | ????#####? ############# # #####?#??#?????? | | ????##?#### ## ##########?#####?#????????? | | ????####### ###" ################?###??????? | | ????####### ### ## #R###############?????? | | ????####### ### R@####?####?#?????????? | | ???###?#### ? ##### ## ##############?????? | | ????#??#### ########## #############??????? | | ??????###### ######### #############??????? | | ?????###?#### #### #### #########?####??????? | | ???? ??####?## " """ ## #####?########??????? | | ?????"?########?" " ## #######?##?####?????? | | ????????####?## ## ##### ########?#??????? | | ???????? #?"### ## #### ###?#####??????? | | ??????? "" ## ###?####???????? | | ??????#? ?"" # ## ## #######???#????? | | ?????????? ? ? # ## ########?#?????? | | ??????? ? ? # # ## ####?##???#???? | | ????????? #?## ## #####?#????????? | | ??????? ######## ###???#????????? | | ???????#???###?#### ###?##?#????????? | | ?????????##??#?#?## ### #?#####?????????? | | ????????#??????#??# #####?###??#??#?????????? | | ??????????#?#??# ####?#??##?#??#??#??????? | | ???????"?? ??? ??###?###???????????? | | ???????? ??## # ? ?#??#?#?#?##?????????? | | ???????? ????#?# ##"""?? ####?#?####?????????? | | ?????????#???## "" """"###?#??????###?????????? | | ?????????#?##### ?#""#???###??#???#????#?????? | | ??????????#?##? ?#"""?##?###?##?##???????????? | +----------------------------------------------------+ Best States ------------- Heat Dissipation 45 Energy Generation 14 Energy Capacity 250 Matter Stores 300 Matter Capacity 300 Sight Range 16 Robot Scan Range 10 Terrain Scan Range 16 Terrain Scan Density 410 Additional Mass Support 6 Evasion (%) 62 Item Schematics ----------------- None Robot Schematics ------------------ None Fabricated ------------ Nothing Repaired ---------- Nothing Studied --------- None Alien Tech Used ----------------- None Achievements -------------- None Challenges ------------ None RPGLIKE | -11 -10 -10 --------- Run | Yrd Mat Sub Levels Raised 1 | . . 1 XP Earned 5425 | 3000 1425 1000 XP Spent 4500 | 3000 . 1500 Upgrades 19 | 11 . 8 Propulsion Slot 2 | 1 . 1 Utility Slot 2 | 2 . . Weapon Slot 1 | 1 . . Core Integrity 2 | . . 2 Heat Dissipation 1 | 1 . . Mass Support 1 | . . 1 Inventory Capacity 1 | 1 . . Sensor Range 5 | 4 . 1 Terrain Scan Density 4 | 1 . 3 Protomatter Created 109 | . 109 . Integrity Restored 293 | . 293 . Core 222 | . 222 . Parts 71 | . 71 . Protomatter Decayed 8 | . 8 . Game ------ Seed EnhancedGreatCycler Manual? 0 Play Time 00:14:55 Cumulative 47.1 hours Start 2025.11.07 @ 19:52:44 End 2025.11.07 @ 20:07:05 Sessions 1 Manual Loads 0 Difficulty Rogue Special Mode Winter2019/RPGLIKE Game No. 42 Rogue 42 Adventurer 0 Explorer 0 Win Type - Total 0 Types 0/0/0/0/0/0/0/0/0/0 Lore% 44 Gallery% 31 Achievement% 29 Wizard Run 0 Options --------- Layout 0 ASCII 0 Keyboard 0 Movement Mouse Keybinds 0 Fullscreen 2 Font 24/Smallcaps Map View 76x50 Zoom Use 0% Tactical HUD 1 Map Filters NONE Filters NONE Steam 1 RUN: 496b1fa9-62a6-451c-9634-a9401fb733dc